Cogmind - Beta 14 @@@ ROGUE MODE // 2024.12.08 @ 11:08:00 Player: Beef Result: Destroyed by H-61 Shepherd with Heavy Assault Cannon Performance ------------- Evolutions (3) 1500 Regions Visited (4) 800 Robots Destroyed (35) 175 Value Destroyed (1260) 1260 Prototype IDs (0) 0 Alien Tech Used (0) 0 Bonus (24) 24 TOTAL SCORE: 3759 Bonus ------- Follower Combat Kills 40 Friendly Fire -16 Cogmind --------- Core Integrity 0/700 Matter 163/300 Energy 136/140 System Corruption 8% Temperature Cool (2) Movement Walking (120) Location -7/Factory Parts ------- > --- POWER (1) -------- Light Deuterium Engine > --- PROPULSION (2) --- Carbon-fiber Leg Carbon-fiber Leg > --- UTILITY (6) ------ Improved Heat Sink Improved Terrain Scan Processor Advanced Targeting Computer Target Analyzer Core Analyzer Force Booster > --- WEAPON (4) ------- (None) > --- INVENTORY (5) ---- (None) Peak State ------------ > --- POWER ------------ Light Deuterium Engine > --- PROPULSION ------- Light Treads Light Treads > --- UTILITY ---------- High-capacity Storage Unit Advanced Weight Redist. System Visual Processing Unit Heavy Armor Plating Improved Field Recycling Unit > --- WEAPON ----------- Shock Rifle Improved EM Pulse Cannon Shotgun Minigun > --- INVENTORY -------- Light Deuterium Engine Light Deuterium Engine Light Treads Carbon-fiber Leg Carbon-fiber Leg Carbon-fiber Leg Carbon-fiber Leg Improved Terrain Scan Processor ECM Suite Advanced Shield Generator Advanced Shield Generator Shock Rifle Rocket Launcher Rocket Launcher Rocket Launcher [Rating: 37] Favorites ----------- Power Light Deuterium Engine Engine Light Deuterium Engine Power Core Micro Nuclear Core Propulsion Light Treads Treads Light Treads Leg Carbon-fiber Leg Wheel Wheel Utility High-capacity Storage Unit Device Heat Sink Storage High-capacity Storage Unit Processor Visual Processing Unit Protection Heavy Armor Plating Weapon Minigun Energy Gun Shock Rifle Energy Cannon Improved EM Pulse Cannon Ballistic Gun Minigun Launcher Rocket Launcher Slashing Weapon Katana Build | -11 -10 -9 -8 -7 ------- Run | Yrd Mat Mat Mat Fac Slots Evolved 6 | . . 2 2 2 Power . | . . . . . Propulsion . | . . . . . Utility 4 | . . 2 1 1 Weapon 2 | . . . 1 1 Parts Attached 64 | 5 3 11 13 32 Power 10 | 1 . 1 2 6 Engine 8 | 1 . 1 2 4 Core 2 | . . . . 2 Reactor . | . . . . . Propulsion 14 | 2 . 4 2 6 Treads 6 | . . 3 2 1 Leg 5 | . . . . 5 Wheel 3 | 2 . 1 . . Hover . | . . . . . Flight . | . . . . . Utility 20 | . 2 3 4 11 Device 10 | . . 1 2 7 Storage 3 | . 2 1 . . Processor 6 | . . 1 1 4 Hackware . | . . . . . Protection 1 | . . . 1 . Artifact . | . . . . . Weapon 20 | 2 1 3 5 9 Energy Gun 3 | . . . 1 2 Energy Cannon 3 | . . . . 3 Ballistic Gun 9 | 2 . 2 4 1 Ballistic Cannon . | . . . . . Launcher 4 | . 1 . . 3 Special Weapon . | . . . . . Impact Weapon . | . . . . . Slashing Weapon 1 | . . 1 . . Piercing Weapon . | . . . . . Special Melee Weapon . | . . . . . Unidentified Prototypes . | . . . . . Parts Lost 29 | . 1 3 2 23 Power 6 | . 1 . 1 4 Propulsion 5 | . . 1 . 4 Utility 5 | . . . . 5 Weapon 13 | . . 2 1 10 Highest Loss Streak 6 | . 1 2 2 6 To Critical Strikes . | . . . . . Average Slot Usage (%) 85 | . 85 95 95 75 Engine 7 | . 10 10 8 4 Treads 11 | . . 16 17 8 Leg 2 | . . . . 4 Wheel 3 | . 28 4 . . Device 11 | . . 8 13 13 Storage 13 | . 17 26 10 6 Processor 10 | . . 6 15 12 Protection 1 | . . . 3 2 Energy Gun 2 | . . . 1 4 Energy Cannon 1 | . . . . 3 Ballistic Gun 11 | . 14 12 20 6 Launcher 2 | . 12 2 . 2 Slashing Weapon 2 | . . 6 4 . Peak Build Rating 37 | 5 7 19 27 37 Average Rating 22 | 4 6 16 24 28 On Entrance 11 | . 5 6 19 26 Naked Turns . | . . . . . Heaviest Build 88 | 6 67 75 74 88 Greatest Support 49 | 20 20 40 49 49 Greatest Overweight (x) 17 | . 3 7 2 17 Average Overweight (x) 1 | . 2 1 1 1 Largest Inventory Capacity 20 | 5 20 20 20 20 Average Capacity 19 | 5 18 20 20 19 Most Carried 16 | . 2 13 14 16 Average Carried 8 | . 1 11 11 8 Final Capacity 20 | 5 20 20 20 5 Final Carried 14 | . 2 13 14 . Class Distribution -------------------- 39% | Mutant 29% | Scavenger-Mutant 14% | Tank 7% | Scavenger-Skirmisher 7% | Scavenger-Tank Dominant Class ---------------- Mutant | -10/Materials Scavenger-Mutant | -9/Materials Scavenger-Mutant | -8/Materials Mutant | -7/Factory Resources | -11 -10 -9 -8 -7 ----------- Run | Yrd Mat Mat Mat Fac Matter Collected 1322 | 278 59 180 478 327 Remotely 342 | . . . 342 . Salvage Created 1049 | 33 95 256 445 220 Parts 65 | 1 2 23 23 16 Haulers Intercepted . | . . . . . Recyclers Shooed . | . . . . . Parts Field Recycled 2 | . . . . 2 Retrieved Matter 9 | . . . . 9 Parts Self-Destructed . | . . . . . Prevented . | . . . . . Kills | -11 -10 -9 -8 -7 ------- Run | Yrd Mat Mat Mat Fac Combat Hostiles Destroyed 24 | 1 2 4 8 9 Melee 3 | . . . . 3 Guns 14 | 1 . 4 8 1 Cannons 1 | . . . . 1 AOE 6 | . 2 . . 4 Classes Destroyed 11 | 1 2 4 2 2 Worker 2 | . . . 1 1 Builder 3 | . . 1 1 1 Tunneler 1 | . . 1 . . Recycler 1 | . 1 . . . Watcher 4 | . 1 2 1 . Swarmer 1 | . . . . 1 Grunt 14 | 1 2 2 5 4 Duelist 1 | . . 1 . . Sentry 3 | . . 1 1 1 Hunter 2 | . . . 2 . Programmer 3 | . . . . 3 Best Kill Streak 3 | 1 2 3 3 3 Combat Bots Only 3 | 1 2 3 2 3 Max Kills in Single Turn 2 | 1 1 1 2 1 Gunslinging . | . . . . . Exploded 1 | . 1 . . 1 Melee 1 | . . . . 1 Uniques/NPCs Destroyed . | . . . . . Combat | -11 -10 -9 -8 -7 -------- Run | Yrd Mat Mat Mat Fac Hostile Shots Fired 474 | 15 9 24 79 347 Missed 160 | 4 4 8 21 123 Damage Taken 4403 | 120 184 250 921 2928 Core 952 | 12 84 36 109 711 Absorbed by Shields 58 | . . . . 58 Core Remaining (%) 81 | 95 61 91 80 . Volleys Fired 139 | 10 10 27 39 53 Largest 4 | 2 2 2 3 4 Hottest 167 | 40 50 43 75 167 Shots Fired 225 | 20 15 31 90 69 Gun 182 | 20 7 31 90 34 Cannon 14 | . . . . 14 Launcher 29 | . 8 . . 21 Special . | . . . . . Kinetic 170 | 20 7 31 88 24 Thermal 7 | . . . . 7 Explosive 29 | . 8 . . 21 Electromagnetic 19 | . . . 2 17 Robot Hit Streak 10 | 6 5 10 8 5 Robot Miss Streak 7 | 1 2 2 7 7 Penetration Max . | . . . . . Secondary Targets 1 | . . . 1 . Max Gunslinging Chain 1 | . . . 1 . Shots Hit Robots 130 | 15 10 29 52 24 Core Hits 86 | 2 9 12 31 32 Critical Kills . | . . . . . Critical Parts Destroyed . | . . . . . Critical Strikes . | . . . . . Melee Attacks 3 | . . 3 . . Impact . | . . . . . Slashing 3 | . . 3 . . Piercing . | . . . . . Sneak Attacks 3 | . . 3 . . Combat Hostiles . | . . . . . Follow-up Attacks . | . . . . . Damage Inflicted 3018 | 161 404 527 880 1046 Guns 1617 | 161 28 331 877 220 Cannons 168 | . . . . 168 Explosions 922 | . 376 . . 546 Melee 196 | . . 196 . . Ramming 115 | . . . 3 112 Kinetic 1518 | 161 28 331 843 155 Thermal 98 | . . . . 98 Explosive 922 | . 376 . . 546 Electromagnetic 169 | . . . 34 135 Impact . | . . . . . Slashing 196 | . . 196 . . Piercing . | . . . . . Highest Corruption 8 | . . . . 8 Average Corruption 5 | . . . . 5 Corruption Purged . | . . . . . Corruption Blocked . | . . . . . Effects 13 | . . . . 13 Message Errors 2 | . . . . 2 Matter Fused 4 | . . . . 4 Heat Flow Errors 3 | . . . . 3 Parts Rejected 2 | . . . . 2 Data Loss (minor) 1 | . . . . 1 Misfires 1 | . . . . 1 Overload Shots . | . . . . . Overflow Damage 97 | . 28 49 . 20 Projectiles . | . . . . . Explosions 48 | . 28 . . 20 Melee 49 | . . 49 . . Knockbacks 1 | . . . . 1 Impact 1 | . . . . 1 Kinetic . | . . . . . Secondary . | . . . . . Self-Inflicted Damage 173 | . 121 . . 52 Shots 6 | . 4 . . 2 Rammed 9 | . . . 1 8 Targets Rammed 33 | . . . 1 32 Kicked 23 | . . . . 23 Crushed 1 | . . . . 1 Highest Temperature 409 | 6 36 25 180 409 Average Temperature 67 | 6 14 7 75 77 Received Heat Transfer 1262 | 66 36 99 495 566 Effects 1 | . . . . 1 Shutdowns 1 | . . . . 1 Siege Activations . | . . . . . Robots Corrupted . | . . . . . Combat Hostiles . | . . . . . Parts Fried . | . . . . . Impact Corruptions . | . . . . . Robots Melted . | . . . . . Combat Hostiles . | . . . . . Parts Melted . | . . . . . Heat Transferred 148 | . . . . 148 Parts Sabotaged . | . . . . . Parts Stolen . | . . . . . Parts Stripped . | . . . . . Power Chain Reactions . | . . . . . Alert | -11 -10 -9 -8 -7 ------- Run | Yrd Mat Mat Mat Fac Peak Influence 238 | 20 134 153 192 238 Initial 56 | . 13 56 11 36 Average 64 | 1 60 63 76 64 Maximum Alert Level 1 | . . . . 1 Low Security (%) 98 | 100 100 100 100 96 Level 1 1 | . . . . 3 Level 2 . | . . . . . Level 3 . | . . . . . Level 4 . | . . . . . Level 5 . | . . . . . High Security . | . . . . . Max Security . | . . . . . Squads Dispatched 7 | . . 1 2 4 Investigation 1 | . . . 1 . Extermination 2 | . . . . 2 Reinforcement 4 | . . 1 1 2 Assault . | . . . . . Garrison . | . . . . . Intercept . | . . . . . Searches Triggered . | . . . . . Construction Impeded 1 | . . . . 1 Haulers Reinforced . | . . . . . Active Scanning Responses . | . . . . . Cargo Convoy Interrupts . | . . . . . Stealth | -11 -10 -9 -8 -7 --------- Run | Yrd Mat Mat Mat Fac Distress Signals 2 | . . . 2 . Communications Jammed . | . . . . . Distress Signals . | . . . . . Times Spotted 49 | 1 3 8 16 21 Peak Tracking Total 4 | 1 2 4 3 4 Tactical Retreats 2 | . . . . 2 Traps | -11 -10 -9 -8 -7 ------- Run | Yrd Mat Mat Mat Fac Traps Triggered 1 | . . . 1 . Indirectly . | . . . . . Trap Hack Attempts . | . . . . . Triggered . | . . . . . Disarmed . | . . . . . Reprogrammed . | . . . . . Reused . | . . . . . Traps Extracted . | . . . . . Installed . | . . . . . Triggered . | . . . . . Machines | -11 -10 -9 -8 -7 ---------- Run | Yrd Mat Mat Mat Fac Machines Disabled 4 | . 2 . . 2 Max in Single Turn 2 | . 2 . . 1 Machines Repaired . | . . . . . Machines Dismantled . | . . . . . Machines Sabotaged . | . . . . . Overloaded Fab Kills . | . . . . . Hacking | -11 -10 -9 -8 -7 --------- Run | Yrd Mat Mat Mat Fac Machines Accessed 5 | . 2 1 . 2 Terminals 2 | . 2 . . . Fabricators 2 | . . . . 2 Repair Stations . | . . . . . Recycling Units 1 | . . 1 . . Scanalyzers . | . . . . . Garrison Access . | . . . . . Total Hacks 17 | . 8 4 . 5 Successful 11 | . 4 4 . 3 Failed 6 | . 4 . . 2 Catastrophic . | . . . . . Database Lockouts . | . . . . . Manual 2 | . 2 . . . Terminals 8 | . 8 . . . Fabricators 5 | . . . . 5 Repair Stations . | . . . . . Recycling Units 4 | . . 4 . . Scanalyzers . | . . . . . Garrison Access . | . . . . . Terminal Hacks 4 | . 4 . . . Record 1 | . 1 . . . Alert Level 1 | . 1 . . . Hauler Manifests 1 | . 1 . . . Zone Layout 1 | . 1 . . . Fabricator Hacks 3 | . . . . 3 Network Status 1 | . . . . 1 Build 2 | . . . . 2 Repair Station Hacks . | . . . . . Recycling Unit Hacks 4 | . . 4 . . Recycle Component 2 | . . 2 . . Process 1 | . . 1 . . Retrieve Matter 1 | . . 1 . . Scanalyzer . | . . . . . Garrison Access Hacks . | . . . . . Unauthorized Hacks . | . . . . . Terminals . | . . . . . Fabricators . | . . . . . Repair Stations . | . . . . . Recycling Units . | . . . . . Scanalyzers . | . . . . . Garrison Access . | . . . . . Data Cores Recovered . | . . . . . Used . | . . . . . Hacking Detections 2 | . 1 . . 1 Full Trace Events . | . . . . . Feedback Events . | . . . . . Feedback Blocked . | . . . . . Robot Schematics Acquired . | . . . . . Robots Built 3 | . . . . 3 Authchips . | . . . . . Time 67 | . . . . 67 Total Robot Build Rating 12 | . . . . 12 Part Schematics Acquired . | . . . . . Parts Built 2 | . . . . 2 Authchips . | . . . . . Time 106 | . . . . 106 Total Part Build Rating 12 | . . . . 12 Parts Repaired . | . . . . . Time . | . . . . . Parts Recycled 2 | . . 2 . . Recycled Matter 22 | . . 22 . . Retrieved Matter 22 | . . 22 . . Retrieved Components . | . . . . . Parts Scanalyzed . | . . . . . Part Schematics Acquired . | . . . . . Parts Damaged . | . . . . . Bothacking | -11 -10 -9 -8 -7 ------------ Run | Yrd Mat Mat Mat Fac Used RIF Installer . | . . . . . Robots Hacked . | . . . . . Non-combat . | . . . . . Combat . | . . . . . Robot Hacks Applied . | . . . . . Relay Couplers Released . | . . . . . Fabnet Peak Effective % . | . . . . . Robots Rewired . | . . . . . Allies Hacked . | . . . . . Hacks Repelled . | . . . . . Allies | -11 -10 -9 -8 -7 -------- Run | Yrd Mat Mat Mat Fac Total Allies 3 | . . . . 3 Largest Group 3 | . . . . 3 Highest-Rated Group 60 | . . . . 60 Highest-Rated Ally 20 | . . . . 20 Total Orders . | . . . . . Ally Attacks 11 | . . . . 11 Total Damage 245 | . . . . 245 Kills 1 | . . . . 1 Allies Corrupted . | . . . . . Allies Melted 1 | . . . . 1 Intel | -11 -10 -9 -8 -7 ------- Run | Yrd Mat Mat Mat Fac Robot Analysis Total . | . . . . . Derelict Logs Recovered . | . . . . . Drone Launches . | . . . . . Drone Recoveries . | . . . . . Exploration | -11 -10 -9 -8 -7 ------------- Run | Yrd Mat Mat Mat Fac Turns Passed 2642 | 75 179 677 521 1190 Spaces Moved 993 | 56 135 284 158 360 Core 24 | 16 . . . 8 Treads 561 | . . 192 158 211 Legs 141 | . . . . 141 Wheels 267 | 40 135 92 . . Hover . | . . . . . Flight . | . . . . . Fastest Speed 50 | 50 80 125 240 120 Average Speed 202 | 71 110 205 240 239 Slowest Speed 900 | 80 125 240 320 900 Overloaded Moves . | . . . . . Propulsion Burnouts . | . . . . . Robots Hopped . | . . . . . Cave-ins Triggered . | . . . . . Exploration Rate (%) 20 | 6 37 28 22 11 Regions Visited 4 Branch Regions . Pre-discovered Areas . | . . . . . Known Exits Taken . | . . . . . Unknown Exits Taken 4 | 1 1 1 1 . Scrap Searched . | . . . . . Spaces Dug 5 | . . . . 5 Terrain Destroyed 123 | . 40 . . 83 Melee . | . . . . . Projectile . | . . . . . AOE 123 | . 40 . . 83 Terrain Rammed . | . . . . . Walls Destroyed . | . . . . . Machines Disabled . | . . . . . Actions | -11 -10 -9 -8 -7 --------- Run | Yrd Mat Mat Mat Fac Total 1361 | 70 150 342 228 571 Wait 81 | . . 1 . 80 Move 989 | 55 134 283 157 360 Hop . | . . . . . Pick Up 29 | . 2 14 7 6 Fast Attach 32 | 5 3 6 8 10 Attach 30 | . . 3 5 22 Detach 2 | . . . . 2 Swap 2 | . . 2 . . Drop 21 | . 1 3 11 6 Fire 139 | 10 10 27 39 53 Melee 3 | . . 3 . . Ram 1 | . . . . 1 Kick 23 | . . . . 23 Crush 9 | . . . 1 8 Escape Stasis . | . . . . . Rewire . | . . . . . Trap . | . . . . . Miscellaneous . | . . . . . Route ------- -11/Scrapyard -10/Materials (discovered 2 exits: *Mat / [*Min]) -9/Materials -8/Materials -7/Factory History --------- Turn | Location | Event 2 | -11/Scrapyard | Met Revision 17 39 | -11/Scrapyard | Discovered new exit (range 8) 76 | -11/Scrapyard | Entered Materials 113 | -10/Materials | Discovered new exit (range 14) 223 | -10/Materials | Discovered new exit (range 13) 255 | -10/Materials | Entered another Materials area 255 | -9/Materials | Evolved 2 slots: Utility x2 303 | -9/Materials | Build established: Mutant 732 | -9/Materials | Build established: Scavenger-Mutant 886 | -9/Materials | Discovered new exit (range 15) 932 | -9/Materials | Entered another Materials area 932 | -8/Materials | Evolved 2 slots: Utility x1, Weapon x1 1342 | -8/Materials | Discovered new exit (range 16) 1453 | -8/Materials | Entered Factory 1453 | -7/Factory | Evolved 2 slots: Utility x1, Weapon x1 1748 | -7/Factory | Fabricated Adv. Shield Generator? 1796 | -7/Factory | Fabricated B-48 Gladiator (x3) 1864 | -7/Factory | Build established: Tank 1968 | -7/Factory | Lost 4 parts (1p1n1u1w) 2124 | -7/Factory | Lost 3 parts (1p1u1w) 2386 | -7/Factory | Lost 3 parts (1u2w) 2398 | -7/Factory | Core integrity fell below 50% 2462 | -7/Factory | Lost 6 parts (1p1n2u2w) 2467 | -7/Factory | Core integrity fell below 20% 2639 | -7/Factory | Build established: Mutant 2643 | -7/Factory | Destroyed by H-61 Shepherd with Heavy Assault Cannon Last Messages --------------- 02507_ Kicked S-27 Virus. 02510_ S-27 Virus destroyed. 02511_ Acquired 3 matter. 02522_ Acquired 12 matter. 02526_ Acquired Imp. Heat Sink. 02527_ Acquired 111 matter. 02570_ System corrupted: Component data lost. 02588_ Kicked U-05 Engineer out of the way. 02599_ Acquired Force Booster. 02609_ System corrupted: Matter fused (-9). 02616_ Dropped Hcp. Storage Unit. 02618_ Acquired Core Analyzer. 02629_ ALERT: Cargo convoy en route, clear transfer corridor. You are entering the active sensor range of a Heavy class robot, which gives away their position but also has a chance to call more squads to reinforce the local area while you are within range. 02641_ Acquired 8 matter. Map ----- +----------------------------------------------------+ | ?????????????????????????????????????????????????? | | ?????????????????????????????????????????????????? | | ?????????????????????????????????????????????????? | | ?????????????????????????????????????????????????? | | ?????????????????????????????????????????????????? | | ????????????????????? H ???????????????????????? | | ???????????????????? ?????????????????????? | | ???????????????????? #???????????????????? | | ???????????????????? ????????????????????? | | ???????????????????? ????????????????????? | | ????????????????????# #????????????????????? | | ????????????????????# #????????????????????? | | ????????????????????# # ??????????????????? | | ???????????????????## # ???????????????????? | | ???????????????????# ^+????????????????????? | | ????????????????????T #????????????????????? | | ????????????????????# #????????????????????? | | ????????????????????# #????????????????????? | | ????????????????????# #????????????????????? | | ? ????????????????# u#????????????????????? | | ? #???????????????# #????????????????????? | | ? +???????????????# #????????????????????? | | # #???????????????# #????????????????????? | | ? ????????????????# #????????????????????? | | ? ????????????????# % #????????????????????? | | ?" ????????????????# @ #????????????????????? | | ?"T ????????????????# % #????????????????????? | | ? ????????????????# #????????????????????? | | ? ????????????????# #????????????????????? | | ?# #?################ #????????????????????? | | ?# #?# # #????????????????????? | | ?# ### ! # #????????????????????? | | ?# + + +????????????????????? | | ?# ### """ """ """ # #????????????????????? | | ?# #?# """ """ """ # #????????????????????? | | ## ### """ """ """ # #????????????????????? | | # # ################ #????????????????????? | | ## ########?????????# #????????????????????? | | # ?????????# k #????????????????????? | | # """ ?????????# #????????????????????? | | # """??????????? #????????????????????? | | # ""???????????? +????????????????????? | | # ????????????? #????????????????????? | | # ## ?????????????? #????????????????????? | | # ##??????????????? #????????????????????? | | # ##########??????? ? ?????????????????????? | | # # #???????###?????????????????????????? | | # # """ #???????????????????????????????????? | | # # """ #???????????????????????????????????? | | # # """ #???????????????????????????????????? | +----------------------------------------------------+ Best States ------------- Heat Dissipation 48 Energy Generation 15 Energy Capacity 265 Matter Stores 300 Matter Capacity 300 Sight Range 18 Terrain Scan Range 14 Terrain Scan Density 110 ECM Strength 1 Additional Mass Support 9 Armor Coverage 600 Evasion (%) 55 Targeting Accuracy 8 Melee Accuracy 5 Target Analysis 5 Core Analysis 6 Recoil Reduction 2 Force Boost 20 Item Schematics ----------------- None Robot Schematics ------------------ None Fabricated ------------ Adv. Shield Generator | x2 | -7/Factory | Preloaded B-48 Gladiator | x3 | -7/Factory | Preloaded Alien Tech Used ----------------- None Achievements -------------- Just What I Needed Maybe Next Time I'll Detach My Launcher My Command Is Your Wish Oops Shopping List Use The Force Challenges ------------ None Game ------ Seed TacticalLightProtomatter Manual? 0 Play Time 00:37:42 Cumulative 1.1 hours Start 2024.12.08 @ 10:31:23 End 2024.12.08 @ 11:08:00 Sessions 1 Manual Loads 0 Difficulty Rogue Special Mode None Game No. 3 Rogue 2 Adventurer 1 Explorer 0 Win Type - Total 0 Types 0/0/0/0/0/0/0/0/0 Lore% 2 Gallery% 7 Achievement% 7 Wizard Run 0 Options --------- Layout 1 ASCII 0 Keyboard 0 Movement Numpad Keybinds 0 Fullscreen 2 Font 24/Smallcaps Map View 50x35 Zoom Use 0% Tactical HUD 1 Map Filters NONE Filters NONE Steam 1 RUN: b0eec6cb-26bf-44d7-8dcd-f094898a4aab